fUST/lending_fUST_20250724
["ID","MTS","AMOUNT","RATE_DAILY","PERIOD"]
[374544875,1753347041662,-460.0,0.00019452,2]
[374544876,1753347041671,-460.0,0.00019452,2]
[374544877,1753347041681,-460.0,0.00019452,2]
[374544878,1753347041690,-460.0,0.00019452,2]
[374544879,1753347041699,-460.0,0.00019452,2]
[374544880,1753347041709,-460.0,0.00019452,2]
[374544881,1753347041719,-556.38,0.00019452,2]
[374544882,1753347041728,-460.0,0.00019452,2]
[374544883,1753347041738,-460.0,0.00019452,2]
[374544884,1753347041748,-460.0,0.00019452,2]
[374544885,1753347041758,-460.0,0.00019452,2]
[374544886,1753347041767,-1036.12,0.00019452,2]
[374544887,1753347041776,-460.0,0.00019452,2]
[374544888,1753347041785,-460.0,0.00019452,2]
[374544889,1753347041796,-460.0,0.00019452,2]
[374544890,1753347041810,-460.0,0.00019452,2]
[374544891,1753347041819,-1345.25,0.00019452,2]
[374544892,1753347041830,-460.0,0.00019452,2]
[374544893,1753347041839,-460.0,0.00019452,2]
[374544894,1753347041848,-460.0,0.00019452,2]
[374544895,1753347041858,-460.0,0.00019452,2]
[374544896,1753347041867,-460.0,0.00019452,2]
[374544897,1753347041876,-207.58775708,0.00019452,2]
[374544898,1753347041885,-500.0,0.00019473,2]
[374544899,1753347041895,-500.0,0.00019473,2]
[374544900,1753347041904,-503.55156825,0.00019473,2]
[374544901,1753347041914,-500.0,0.00019473,2]
[374544902,1753347041923,-501.20232249,0.00019473,2]
[374544903,1753347041932,-500.0,0.00019473,2]
[374544904,1753347041945,-501.84035295,0.00019473,2]
[374544905,1753347041955,-257.08560196,0.00019473,2]
[374544906,1753347041964,-500.0,0.00019473,2]
[374544907,1753347041974,-500.0,0.00019473,2]
[374544908,1753347041984,-5751.71326067,0.00019626,2]
[374544909,1753347041993,-460.0,0.00019726,2]
[374544910,1753347042004,-460.0,0.00019726,2]
[374544911,1753347042014,-460.0,0.00019726,2]
[374544912,1753347042023,-460.0,0.00019726,2]
[374544913,1753347042033,-460.0,0.00019726,2]
[374544914,1753347042042,-203.15077087,0.00019726,2]
[374544915,1753347042052,-460.0,0.00019726,2]
[374544916,1753347042063,-196.04479777,0.00019726,2]
[374544917,1753347042074,-463.73821252,0.00019726,2]
[374544918,1753347042083,-460.0,0.00019726,2]
[374544919,1753347042092,-653.35,0.00019726,2]
[374544920,1753347042102,-460.0,0.00019726,2]
[374544921,1753347042111,-460.0,0.00019726,2]
[374544922,1753347042121,-490.86664328,0.00019726,2]
[374544923,1753347042131,-731.3,0.00019726,2]
[374544924,1753347042142,-460.0,0.00019726,2]
[374544925,1753347042151,-460.0,0.00019726,2]
[374544926,1753347042160,-469.14110224,0.00019726,2]
[374544927,1753347042169,-460.0,0.00019726,2]
[374544928,1753347042179,-460.0,0.00019726,2]
[374544929,1753347042188,-460.0,0.00019726,2]
[374544930,1753347042198,-460.0,0.00019726,2]
[374544931,1753347042208,-460.0,0.00019726,2]
[374544932,1753347042217,-460.0,0.00019726,2]
[374544933,1753347042227,-460.0,0.00019726,2]
[374544934,1753347042236,-281.22,0.00019726,2]
[374544935,1753347042246,-552.50594142,0.00019726,2]
[374544936,1753347042255,-460.0,0.00019726,2]
[374544937,1753347042264,-460.0,0.00019726,2]
[374544938,1753347042274,-416.82546977,0.00019726,2]
[374544939,1753347042283,-286.79657035,0.00019726,2]
[374544940,1753347042293,-460.0,0.00019726,2]
[374544941,1753347042303,-460.0,0.00019726,2]
[374544942,1753347042312,-460.0,0.00019726,2]
[374544943,1753347042322,-460.0,0.00019726,2]
[374544944,1753347042334,-460.0,0.00019726,2]
[374544945,1753347042349,-460.0,0.00019726,2]
[374544946,1753347042363,-460.0,0.00019726,2]
[374544947,1753347042372,-460.0,0.00019726,2]
[374544948,1753347042381,-460.0,0.00019726,2]
[374544949,1753347042391,-460.0,0.00019726,2]
[374544951,1753347042400,-460.0,0.00019726,2]
[374544952,1753347042410,-154.14,0.00019726,2]
[374544953,1753347042419,-460.0,0.00019726,2]
[374544954,1753347042428,-200.0,0.00019726,10]
[374544955,1753347042438,-460.0,0.00019726,2]
[374544957,1753347042449,-460.0,0.00019726,2]
[374544958,1753347042458,-460.0,0.00019726,2]
[374544960,1753347042467,-2468.62,0.00019726,2]
[374544961,1753347042476,-460.0,0.00019726,2]
[374544962,1753347042486,-460.0,0.00019726,2]
[374544963,1753347042495,-460.0,0.00019726,2]
[374544964,1753347042504,-460.0,0.00019726,2]
[374544966,1753347042513,-407.41580795,0.00019726,2]
[374544967,1753347042522,-460.0,0.00019726,2]
[374544968,1753347042532,-460.0,0.00019726,2]
[374544969,1753347042541,-1152.62,0.00019726,2]
[374544970,1753347042551,-460.0,0.00019726,2]
[374544971,1753347042561,-460.0,0.00019726,2]
[374544972,1753347042571,-460.0,0.00019726,2]
[374544974,1753347042584,-460.0,0.00019726,2]
[374544976,1753347042597,-460.0,0.00019726,2]
[374544978,1753347042617,-460.0,0.00019726,2]
[374544980,1753347042637,-662.55,0.00019726,2]
[374544982,1753347042648,-460.0,0.00019726,2]
[374544984,1753347042657,-232.7034171,0.00019726,2]
[374544986,1753347042667,-460.0,0.00019726,2]
[374544989,1753347042677,-714.85,0.00019726,2]
[374544990,1753347042687,-460.0,0.00019726,2]
[374544991,1753347042696,-460.0,0.00019726,2]
[374544992,1753347042705,-778.62,0.00019726,2]
[374544993,1753347042715,-460.0,0.00019726,2]
[374544994,1753347042727,-2405.7,0.00019726,2]
[374544995,1753347042738,-460.0,0.00019726,2]
[374544997,1753347042748,-460.0,0.00019726,2]
[374544999,1753347042758,-460.0,0.00019726,2]
[374545000,1753347042769,-460.0,0.00019726,2]
[374545001,1753347042779,-969.16,0.00019726,2]
[374545002,1753347042790,-465.80519536,0.00019726,2]
[374545004,1753347042900,-460.0,0.00019726,2]
[374545005,1753347042911,-460.0,0.00019726,2]
[374545006,1753347042922,-460.0,0.00019726,2]
[374545007,1753347042931,-460.0,0.00019726,2]
[374545008,1753347042941,-866.67,0.00019726,2]
[374545009,1753347042951,-460.0,0.00019726,2]
[374545011,1753347042960,-460.0,0.00019726,2]
[374545013,1753347042969,-975.06,0.00019726,2]
[374545015,1753347042979,-685.24,0.00019726,2]
[374545017,1753347042988,-460.0,0.00019726,2]
[374545018,1753347042998,-460.0,0.00019726,2]
[374545021,1753347043009,-460.0,0.00019726,2]
[374545022,1753347043019,-460.0,0.00019726,2]
[374545024,1753347043028,-460.0,0.00019726,2]
[374545026,1753347043038,-460.0,0.00019726,2]
[374545029,1753347043048,-460.0,0.00019726,2]
[374545031,1753347043058,-460.0,0.00019726,2]
[374545032,1753347043067,-556.38,0.00019726,2]
[374545035,1753347043081,-460.0,0.00019726,2]
[374545036,1753347043090,-468.33186224,0.00019726,2]
[374545038,1753347043100,-460.0,0.00019726,2]
[374545041,1753347043110,-1036.12,0.00019726,2]
[374545042,1753347043119,-460.0,0.00019726,2]
[374545044,1753347043129,-370.79196442,0.00019726,2]
[374545047,1753347043139,-460.0,0.00019726,2]
[374545049,1753347043149,-1345.25,0.00019726,2]
[374545051,1753347043158,-460.0,0.00019726,2]
[374545052,1753347043167,-464.03756129,0.00019726,2]
[374545054,1753347043178,-460.0,0.00019726,2]
[374545056,1753347043187,-460.0,0.00019726,2]
[374545059,1753347043196,-460.0,0.00019726,2]
[374545061,1753347043207,-500.0,0.00019808,2]
[374545063,1753347043216,-160.0,0.00019892,2]
[374545065,1753347043227,-2086.61430098,0.000199,2]
[374545067,1753347043236,-460.0,0.0002,2]
[374545070,1753347043246,-460.0,0.0002,2]
[374545071,1753347043256,-460.0,0.0002,2]
[374545073,1753347043265,-460.0,0.0002,2]
[374545075,1753347043274,-460.0,0.0002,2]
[374545077,1753347043282,-653.35,0.0002,2]
[374545079,1753347043292,-460.0,0.0002,2]
[374545081,1753347043301,-460.0,0.0002,2]
[374545083,1753347043310,-731.3,0.0002,2]
[374545085,1753347043320,-460.0,0.0002,2]
[374545087,1753347043333,-460.0,0.0002,2]
[374545089,1753347043343,-460.0,0.0002,2]
[374545091,1753347043354,-460.0,0.0002,2]
[374545093,1753347043364,-460.0,0.0002,2]
[374545095,1753347043373,-460.0,0.0002,2]
[374545097,1753347043383,-460.0,0.0002,2]
[374545099,1753347043394,-460.0,0.0002,2]
[374545101,1753347043404,-460.0,0.0002,2]
[374545103,1753347043414,-460.0,0.0002,2]
[374545105,1753347043424,-460.0,0.0002,2]
[374545108,1753347043435,-460.0,0.0002,2]
[374545109,1753347043445,-460.0,0.0002,2]
[374545111,1753347043454,-460.0,0.0002,2]
[374545113,1753347043464,-460.0,0.0002,2]
[374545115,1753347043474,-460.0,0.0002,2]
[374545118,1753347043484,-460.0,0.0002,2]
[374545119,1753347043493,-460.0,0.0002,2]
[374545121,1753347043502,-245.24622925,0.0002,2]
[374545123,1753347043511,-460.0,0.0002,2]
[374545125,1753347043522,-460.0,0.0002,2]
[374545127,1753347043531,-460.0,0.0002,2]
[374545129,1753347043540,-2468.62,0.0002,2]
[374545131,1753347043550,-460.0,0.0002,2]
[374545133,1753347043559,-460.0,0.0002,2]
[374545135,1753347043569,-460.0,0.0002,2]
[374545137,1753347043581,-1152.62,0.0002,2]
[374545140,1753347043590,-460.0,0.0002,2]
[374545141,1753347043599,-460.0,0.0002,2]
[374545143,1753347043608,-460.0,0.0002,2]
[374545145,1753347043616,-460.0,0.0002,2]
[374545147,1753347043626,-460.0,0.0002,2]
[374545149,1753347043636,-151.67426413,0.0002,2]
[374545151,1753347043646,-662.55,0.0002,2]
[374545153,1753347043655,-460.0,0.0002,2]
[374545155,1753347043664,-714.85,0.0002,2]
[374545157,1753347043674,-460.0,0.0002,2]
[374545159,1753347043683,-460.0,0.0002,2]
[374545161,1753347043692,-778.62,0.0002,2]
[374545163,1753347043703,-460.0,0.0002,2]
[374545165,1753347043713,-460.0,0.0002,2]
[374545167,1753347043722,-2405.7,0.0002,2]
[374545169,1753347043731,-460.0,0.0002,2]
[374545171,1753347043741,-460.0,0.0002,2]
[374545173,1753347043750,-460.0,0.0002,2]
[374545175,1753347043760,-969.16,0.0002,2]
[374545177,1753347043769,-460.0,0.0002,2]
[374545179,1753347043778,-460.0,0.0002,2]
[374545181,1753347043787,-460.0,0.0002,2]
[374545183,1753347043797,-460.0,0.0002,2]
[374545185,1753347043807,-866.67,0.0002,2]
[374545187,1753347043816,-460.0,0.0002,2]
[374545189,1753347043825,-460.0,0.0002,2]
[374545191,1753347043835,-975.06,0.0002,2]
[374545193,1753347043844,-685.24,0.0002,2]
[374545195,1753347043854,-460.0,0.0002,2]
[374545197,1753347043863,-460.0,0.0002,2]
[374545199,1753347043873,-460.0,0.0002,2]
[374545201,1753347043882,-460.0,0.0002,2]
[374545203,1753347043892,-460.0,0.0002,2]
[374545206,1753347043911,-460.0,0.0002,2]
[374545208,1753347043922,-460.0,0.0002,2]
[374545210,1753347043931,-269.56,0.0002,2]
[374545212,1753347043941,-556.38,0.0002,2]
[374545214,1753347043953,-576.98,0.0002,2]
[374545216,1753347043963,-460.0,0.0002,2]
[374545218,1753347043972,-1036.12,0.0002,2]
[374545221,1753347043983,-460.0,0.0002,2]
[374545223,1753347043993,-504.85476836,0.0002,2]
[374545225,1753347044002,-1345.25,0.0002,2]
[374545226,1753347044012,-460.0,0.0002,2]
[374545228,1753347044021,-460.0,0.0002,2]
[374545230,1753347044033,-460.0,0.0002,2]
[374545232,1753347044043,-460.0,0.0002,2]
[374545235,1753347044053,-218.86700764,0.00020021,2]
[374545237,1753347044064,-2086.6143009,0.00020107,2]
[374545239,1753347044076,-460.0,0.00020273,2]
[374545241,1753347044086,-460.0,0.00020273,2]
[374545243,1753347044095,-460.0,0.00020273,2]
[374545245,1753347044105,-151.80139244,0.00020273,2]
[374545247,1753347044114,-540.38559352,0.00020273,2]
[374545249,1753347044124,-653.35,0.00020273,2]
[374545251,1753347044133,-460.0,0.00020273,2]
[374545253,1753347044143,-731.3,0.00020273,2]
[374545255,1753347044153,-460.0,0.00020273,2]
[374545257,1753347044162,-460.0,0.00020273,2]
[374545259,1753347044172,-408.50298325,0.00020273,2]
[374545261,1753347044181,-460.0,0.00020273,2]
[374545263,1753347044191,-460.0,0.00020273,2]
[374545265,1753347044201,-460.0,0.00020273,2]
[374545267,1753347044211,-460.0,0.00020273,2]
[374545269,1753347044221,-460.0,0.00020273,2]
[374545271,1753347044230,-460.0,0.00020273,2]
[374545273,1753347044240,-460.0,0.00020273,2]
[374545275,1753347044249,-460.0,0.00020273,2]
[374545277,1753347044259,-460.0,0.00020273,2]
[374545279,1753347044269,-460.0,0.00020273,2]
[374545281,1753347044279,-460.0,0.00020273,2]
[374545283,1753347044288,-460.0,0.00020273,2]
[374545285,1753347044298,-460.0,0.00020273,2]
[374545287,1753347044308,-460.0,0.00020273,2]
[374545289,1753347044318,-2468.62,0.00020273,2]
[374545291,1753347044329,-460.0,0.00020273,2]
[374545293,1753347044338,-460.0,0.00020273,2]
[374545295,1753347044351,-460.0,0.00020273,2]
[374545297,1753347044362,-1152.62,0.00020273,2]
[374545299,1753347044372,-460.0,0.00020273,2]
[374545301,1753347044381,-460.0,0.00020273,2]
[374545303,1753347044391,-460.0,0.00020273,2]
[374545305,1753347044401,-460.0,0.00020273,2]
[374545307,1753347044411,-460.0,0.00020273,2]
[374545309,1753347044420,-662.55,0.00020273,2]
[374545311,1753347044431,-460.0,0.00020273,2]
[374545313,1753347044442,-714.85,0.00020273,2]
[374545315,1753347044452,-460.0,0.00020273,2]
[374545317,1753347044462,-460.0,0.00020273,2]
[374545319,1753347044473,-778.62,0.00020273,2]
[374545321,1753347044482,-460.0,0.00020273,2]
[374545323,1753347044492,-460.0,0.00020273,2]
[374545325,1753347044502,-2405.7,0.00020273,2]
[374545327,1753347044512,-460.0,0.00020273,2]
[374545329,1753347044521,-460.0,0.00020273,2]
[374545331,1753347044531,-460.0,0.00020273,2]
[374545333,1753347044540,-969.16,0.00020273,2]
[374545335,1753347044550,-460.0,0.00020273,2]
[374545337,1753347044560,-204.65519776,0.00020273,2]
[374545339,1753347044570,-460.0,0.00020273,2]
[374545341,1753347044582,-460.0,0.00020273,2]
[374545343,1753347044591,-866.67,0.00020273,2]
[374545345,1753347044601,-460.0,0.00020273,2]
[374545347,1753347044611,-460.0,0.00020273,2]
[374545349,1753347044621,-975.06,0.00020273,2]
[374545351,1753347044631,-685.24,0.00020273,2]
[374545352,1753347044640,-460.0,0.00020273,2]
[374545354,1753347044650,-460.0,0.00020273,2]
[374545356,1753347044660,-460.0,0.00020273,2]
[374545358,1753347044669,-460.0,0.00020273,2]
[374545360,1753347044680,-460.0,0.00020273,2]
[374545362,1753347044690,-460.0,0.00020273,2]
[374545364,1753347044699,-460.0,0.00020273,2]
[374545366,1753347044709,-556.38,0.00020273,2]
[374545368,1753347044718,-460.0,0.00020273,2]
[374545370,1753347044728,-1036.12,0.00020273,2]
[374545372,1753347044738,-460.0,0.00020273,2]
[374545374,1753347044748,-1345.25,0.00020273,2]
[374545376,1753347044758,-460.0,0.00020273,2]
[374545378,1753347044768,-460.0,0.00020273,2]
[374545380,1753347044777,-460.0,0.00020273,2]
[374545382,1753347044786,-2086.6143009,0.00020314,3]
[374545384,1753347044796,-409.54295232,0.00020329,2]
[374545386,1753347044806,-260.0,0.0002044,2]
[374545388,1753347044815,-2086.6143009,0.00020521,3]
[374545390,1753347044826,-158.30900558,0.00020529,2]
[374545392,1753347044835,-840.23756827,0.00020547,2]
[374545394,1753347044846,-460.0,0.00020547,2]
[374545396,1753347044859,-460.0,0.00020547,2]
[374545398,1753347044870,-460.0,0.00020547,2]
[374545400,1753347044880,-653.35,0.00020547,2]
[374545402,1753347044891,-731.3,0.00020547,2]
[374545404,1753347044901,-460.0,0.00020547,2]
[374545406,1753347044911,-548.85261892,0.00020547,2]
[374545408,1753347044921,-460.0,0.00020547,2]
[374545410,1753347044930,-460.0,0.00020547,2]
[374545412,1753347044939,-468.71124717,0.00020547,2]
[374545414,1753347044949,-460.0,0.00020547,2]
[374545416,1753347044959,-460.0,0.00020547,2]
[374545418,1753347044970,-351.9958886,0.00020547,2]
[374545420,1753347044979,-460.0,0.00020547,2]
[374545422,1753347044989,-489.70839363,0.00020547,2]
[374545424,1753347044998,-460.0,0.00020547,2]
[374545426,1753347045007,-255.61,0.00020547,2]
[374545428,1753347045017,-460.0,0.00020547,2]
[374545430,1753347045027,-460.0,0.00020547,2]
[374545432,1753347045036,-460.0,0.00020547,2]
[374545434,1753347045046,-2468.62,0.00020547,2]
[374545436,1753347045057,-460.0,0.00020547,2]
[374545438,1753347045067,-460.0,0.00020547,2]
[374545440,1753347045077,-460.0,0.00020547,2]
[374545442,1753347045087,-1152.62,0.00020547,2]
[374545444,1753347045096,-460.0,0.00020547,2]
[374545446,1753347045106,-339.33,0.00020547,2]
[374545448,1753347045116,-460.0,0.00020547,2]
[374545450,1753347045126,-460.0,0.00020547,2]
[374545452,1753347045135,-460.0,0.00020547,2]
[374545454,1753347045144,-662.55,0.00020547,2]
[374545455,1753347045154,-460.0,0.00020547,2]
[374545458,1753347045164,-714.85,0.00020547,2]
[374545460,1753347045175,-460.0,0.00020547,2]
[374545462,1753347045185,-460.0,0.00020547,2]
[374545464,1753347045194,-778.62,0.00020547,2]
[374545466,1753347045204,-460.0,0.00020547,2]
[374545467,1753347045214,-376.40490601,0.00020547,2]
[374545469,1753347045223,-2405.7,0.00020547,2]
[374545471,1753347045232,-460.0,0.00020547,2]
[374545473,1753347045242,-460.0,0.00020547,2]
[374545476,1753347045251,-460.0,0.00020547,2]
[374545478,1753347045261,-969.16,0.00020547,2]
[374545480,1753347045270,-460.0,0.00020547,2]
[374545482,1753347045279,-460.0,0.00020547,2]
[374545484,1753347045289,-460.0,0.00020547,2]
[374545486,1753347045299,-866.67,0.00020547,2]
[374545487,1753347045309,-460.0,0.00020547,2]
[374545502,1753347045436,-460.0,0.00020547,2]
[374545504,1753347045446,-975.06,0.00020547,2]
[374545506,1753347045456,-685.24,0.00020547,2]
[374545508,1753347045465,-460.0,0.00020547,2]
[374545510,1753347045475,-460.0,0.00020547,2]
[374545513,1753347045484,-460.0,0.00020547,2]
[374545515,1753347045493,-460.0,0.00020547,2]
[374545517,1753347045503,-460.0,0.00020547,2]
[374545519,1753347045512,-460.0,0.00020547,2]
[374545521,1753347045522,-556.38,0.00020547,2]
[374545523,1753347045531,-1036.12,0.00020547,2]
[374545525,1753347045540,-460.0,0.00020547,2]
[374545527,1753347045550,-1345.25,0.00020547,2]
[374545529,1753347045561,-460.0,0.00020547,2]
[374545531,1753347045571,-460.0,0.00020547,2]
[374545533,1753347045581,-12624.810388,0.00020555,2]
[374545535,1753347045591,-476.79463412,0.00020555,2]
[374545537,1753347045601,-215.88777038,0.00020555,2]
[374545539,1753347045610,-160.0,0.00020555,2]
[374545541,1753347045619,-526.24749348,0.00020555,2]
[374545543,1753347045628,-160.0,0.00020555,2]
[374545545,1753347045638,-160.0,0.00020556,2]
[374545547,1753347045647,-215.98721705,0.00020609,2]
[374545549,1753347045657,-794.35194609,0.00020697,2]
[374545551,1753347045666,-2086.6143009,0.00020728,3]
[374545553,1753347045676,-420.0,0.00020792,2]
[374545555,1753347045686,-460.0,0.00020821,2]
[374545557,1753347045698,-460.0,0.00020821,2]
[374545559,1753347045707,-653.35,0.00020821,2]
[374545561,1753347045716,-731.3,0.00020821,2]
[374545563,1753347045726,-460.0,0.00020821,2]
[374545565,1753347045736,-460.0,0.00020821,2]
[374545567,1753347045746,-460.0,0.00020821,2]
[374545569,1753347045757,-460.0,0.00020821,2]
[374545571,1753347045767,-473.83700049,0.00020821,2]
[374545572,1753347045776,-460.0,0.00020821,2]
[374545573,1753347045786,-460.0,0.00020821,2]
[374545574,1753347045795,-460.0,0.00020821,2]
[374545575,1753347045804,-460.0,0.00020821,2]
[374545576,1753347045813,-2468.62,0.00020821,2]
[374545577,1753347045823,-460.0,0.00020821,2]
[374545578,1753347045833,-460.0,0.00020821,2]
[374545579,1753347045843,-460.0,0.00020821,2]
[374545580,1753347045853,-1152.62,0.00020821,2]
[374545581,1753347045862,-460.0,0.00020821,2]
[374545582,1753347045875,-460.0,0.00020821,2]
[374545583,1753347045884,-460.0,0.00020821,2]
[374545584,1753347045893,-662.55,0.00020821,2]
[374545585,1753347045903,-460.0,0.00020821,2]
[374545586,1753347045912,-714.85,0.00020821,2]
[374545587,1753347045922,-460.0,0.00020821,2]
[374545588,1753347045932,-460.0,0.00020821,2]
[374545589,1753347045941,-778.62,0.00020821,2]
[374545590,1753347045951,-460.0,0.00020821,2]
[374545591,1753347045960,-2405.7,0.00020821,2]
[374545592,1753347045970,-456.43,0.00020821,2]
[374545593,1753347045979,-460.0,0.00020821,2]
[374545594,1753347045989,-460.0,0.00020821,2]
[374545595,1753347045998,-969.16,0.00020821,2]
[374545596,1753347046007,-460.0,0.00020821,2]
[374545597,1753347046017,-460.0,0.00020821,2]
[374545598,1753347046026,-460.0,0.00020821,2]
[374545599,1753347046035,-866.67,0.00020821,2]
[374545601,1753347046045,-460.0,0.00020821,2]
[374545602,1753347046054,-460.0,0.00020821,2]
[374545603,1753347046064,-685.24,0.00020821,2]
[374545604,1753347046073,-975.06,0.00020821,2]
[374545606,1753347046085,-460.0,0.00020821,2]
[374545608,1753347046093,-460.0,0.00020821,2]
[374545610,1753347046103,-460.0,0.00020821,2]
[374545612,1753347046113,-460.0,0.00020821,2]
[374545614,1753347046123,-460.0,0.00020821,2]
[374545616,1753347046132,-460.0,0.00020821,2]
[374545618,1753347046142,-556.38,0.00020821,2]
[374545621,1753347046151,-1036.12,0.00020821,2]
[374545623,1753347046161,-460.0,0.00020821,2]
[374545625,1753347046171,-1345.25,0.00020821,2]
[374545627,1753347046180,-460.0,0.00020821,2]
[374545628,1753347046190,-460.0,0.00020821,2]
[374545631,1753347046199,-500.0,0.0002085,2]
[374545633,1753347046208,-178.70934786,0.00020864,2]
[374545634,1753347046217,-504.876,0.00020864,2]
[374545636,1753347046227,-347.94969678,0.00020864,2]
[374545638,1753347046236,-2086.6143009,0.00020934,4]
[374545640,1753347046245,-174.21,0.00020937,2]
[374545642,1753347046255,-158.977659,0.00020951,2]
[374545644,1753347046264,-500.0,0.0002098,2]
[374545647,1753347046274,-600.0,0.00020986,2]
[374545649,1753347046283,-360.0,0.00020988,2]
[374545651,1753347046291,-501.487689,0.00021055,2]
[374545653,1753347046301,-500.35759823,0.00021055,2]
[374545655,1753347046310,-500.0,0.00021064,2]
[374545657,1753347046320,-460.0,0.00021095,2]
[374545659,1753347046332,-460.0,0.00021095,2]
[374545661,1753347046343,-653.35,0.00021095,2]
[374545663,1753347046353,-731.3,0.00021095,2]
[374545664,1753347046365,-460.0,0.00021095,2]
[374545667,1753347046376,-460.0,0.00021095,2]
[374545668,1753347046385,-460.0,0.00021095,2]
[374545672,1753347046395,-460.0,0.00021095,2]
[374545673,1753347046405,-460.0,0.00021095,2]
[374545675,1753347046415,-460.0,0.00021095,2]
[374545677,1753347046424,-460.0,0.00021095,2]
[374545679,1753347046434,-460.0,0.00021095,2]
[374545682,1753347046445,-2468.62,0.00021095,2]
[374545684,1753347046455,-544.06774194,0.00021095,2]
[374545686,1753347046465,-460.0,0.00021095,2]
[374545688,1753347046474,-460.0,0.00021095,2]
[374545690,1753347046484,-1152.62,0.00021095,2]
[374545692,1753347046494,-206.72,0.00021095,2]
[374545694,1753347046504,-460.0,0.00021095,2]
[374545695,1753347046514,-460.0,0.00021095,2]
[374545697,1753347046523,-662.55,0.00021095,2]
[374545700,1753347046540,-460.0,0.00021095,2]
[374545703,1753347046554,-714.85,0.00021095,2]
[374545705,1753347046569,-460.0,0.00021095,2]
[374545707,1753347046586,-460.0,0.00021095,2]
[374545710,1753347046598,-778.62,0.00021095,2]
[374545712,1753347046612,-460.0,0.00021095,2]
[374545714,1753347046625,-2405.7,0.00021095,2]
[374545717,1753347046638,-460.0,0.00021095,2]
[374545719,1753347046651,-460.0,0.00021095,2]
[374545721,1753347046664,-969.16,0.00021095,2]
[374545724,1753347046678,-460.0,0.00021095,2]
[374545726,1753347046689,-581.24,0.00021095,2]
[374545729,1753347046703,-460.0,0.00021095,2]
[374545731,1753347046717,-866.67,0.00021095,2]
[374545733,1753347046731,-460.0,0.00021095,2]
[374545736,1753347046743,-460.0,0.00021095,2]
[374545738,1753347046756,-685.24,0.00021095,2]
[374545740,1753347046769,-975.06,0.00021095,2]
[374545742,1753347046781,-460.0,0.00021095,2]
[374545743,1753347046794,-460.0,0.00021095,2]
[374545744,1753347046807,-460.0,0.00021095,2]
[374545745,1753347046819,-460.0,0.00021095,2]
[374545746,1753347046829,-460.0,0.00021095,2]
[374545747,1753347046840,-397.14,0.00021095,2]
[374545748,1753347046852,-556.38,0.00021095,2]
[374545749,1753347046863,-1036.12,0.00021095,2]
[374545750,1753347046875,-193.62361746,0.00021095,2]
[374545751,1753347046888,-1345.25,0.00021095,2]
[374545752,1753347046902,-460.0,0.00021095,2]